fUST/lending_fUST_20241003
["ID","MTS","AMOUNT","RATE_DAILY","PERIOD"]
[339760605,1727956246424,-151.0,0.00013698,2]
[339760606,1727956246433,-500.0,0.00013698,2]
[339760607,1727956246443,-500.0,0.00013698,2]
[339760608,1727956246452,-525.88,0.00013698,2]
[339760609,1727956246462,-525.88,0.00013698,2]
[339760610,1727956246472,-525.88,0.00013698,2]
[339760611,1727956246481,-525.88,0.00013698,2]
[339760612,1727956246491,-525.88,0.00013698,2]
[339760613,1727956246501,-525.88,0.00013698,2]
[339760614,1727956246510,-525.9436489,0.00013698,2]
[339760615,1727956246520,-563.76,0.00013698,2]
[339760616,1727956246530,-500.0,0.00013698,2]
[339760617,1727956246539,-500.0,0.00013698,2]
[339760618,1727956246548,-500.0,0.00013698,2]
[339760619,1727956246558,-553.46198688,0.00013698,2]
[339760620,1727956246569,-500.0,0.00013698,2]
[339760621,1727956246578,-562.54701559,0.00013698,2]
[339760622,1727956246587,-500.0,0.00013698,2]
[339760623,1727956246597,-500.0,0.00013698,2]
[339760624,1727956246607,-500.0,0.00013698,2]
[339760625,1727956246617,-500.0,0.00013698,2]
[339760626,1727956246626,-500.0,0.00013698,2]
[339760627,1727956246636,-500.0,0.00013698,2]
[339760628,1727956246646,-527.3,0.00013698,2]
[339760629,1727956246655,-500.0,0.00013698,2]
[339760630,1727956246665,-760.87,0.00013698,2]
[339760631,1727956246674,-500.0,0.00013698,2]
[339760632,1727956246684,-500.0,0.00013698,2]
[339760633,1727956246694,-500.0,0.00013698,2]
[339760634,1727956246703,-500.0,0.00013698,2]
[339760635,1727956246713,-551.57,0.00013698,2]
[339760636,1727956246723,-500.0,0.00013698,2]
[339760637,1727956246732,-500.0,0.00013698,2]
[339760638,1727956246743,-500.0,0.00013698,2]
[339760639,1727956246753,-500.0,0.00013698,2]
[339760640,1727956246763,-500.0,0.00013698,2]
[339760641,1727956246773,-500.0,0.00013698,2]
[339760642,1727956246782,-500.0,0.00013698,2]
[339760643,1727956246792,-500.0,0.00013698,2]
[339760644,1727956246802,-500.0,0.00013698,2]
[339760645,1727956246811,-500.0,0.00013698,2]
[339760646,1727956246821,-500.0,0.00013698,2]
[339760647,1727956246831,-500.0,0.00013698,2]
[339760648,1727956246841,-500.0,0.00013698,2]
[339760649,1727956246850,-500.0,0.00013698,2]
[339760650,1727956246860,-151.0,0.00013698,2]
[339760651,1727956246870,-500.0,0.00013698,2]
[339760652,1727956246879,-500.0,0.00013698,2]
[339760653,1727956246889,-500.0,0.00013698,2]
[339760654,1727956246898,-500.0,0.00013698,2]
[339760655,1727956246909,-151.0,0.00013698,2]
[339760656,1727956246918,-500.0,0.00013698,2]
[339760657,1727956246929,-500.0,0.00013698,2]
[339760658,1727956246939,-500.0,0.00013698,2]
[339760659,1727956246950,-500.0,0.00013698,2]
[339760660,1727956246961,-500.0,0.00013698,2]
[339760661,1727956246973,-151.0,0.00013698,2]
[339760662,1727956246986,-500.0,0.00013698,2]
[339760663,1727956246996,-500.0,0.00013698,2]
[339760664,1727956247006,-500.0,0.00013698,2]
[339760665,1727956247019,-500.0,0.00013698,2]
[339760666,1727956247030,-500.0,0.00013698,2]
[339760667,1727956247040,-500.0,0.00013698,2]
[339760668,1727956247052,-607.33,0.00013698,2]
[339760669,1727956247061,-523.63593592,0.00013698,2]
[339760670,1727956247071,-500.0,0.00013698,2]
[339760671,1727956247083,-729.97,0.00013698,2]
[339760672,1727956247093,-500.0,0.00013698,2]
[339760673,1727956247104,-500.0,0.00013698,2]
[339760674,1727956247115,-510.15554747,0.00013698,2]
[339760675,1727956247126,-500.0,0.00013698,2]
[339760676,1727956247135,-500.0,0.00013698,2]
[339760677,1727956247147,-500.0,0.00013698,2]
[339760678,1727956247159,-500.0,0.00013698,2]
[339760679,1727956247171,-172.42045445,0.00013698,2]
[339760680,1727956247182,-500.0,0.00013698,2]
[339760681,1727956247194,-500.0,0.00013698,2]
[339760682,1727956247204,-966.74,0.00013698,2]
[339760683,1727956247214,-500.0,0.00013698,2]
[339760684,1727956247225,-514.13,0.00013698,2]
[339760685,1727956247236,-500.0,0.00013698,2]
[339760686,1727956247247,-500.0,0.00013698,2]
[339760687,1727956247257,-529.26111071,0.00013698,2]
[339760688,1727956247268,-151.0,0.00013698,2]
[339760689,1727956247279,-500.0,0.00013698,2]
[339760690,1727956247289,-151.0,0.00013698,2]
[339760691,1727956247300,-640.32950333,0.00013698,2]
[339760692,1727956247311,-151.0,0.00013698,2]
[339760693,1727956247321,-151.0,0.00013698,2]
[339760694,1727956247333,-151.0,0.00013698,2]
[339760695,1727956247343,-500.11668833,0.00013698,2]
[339760696,1727956247354,-970.56,0.00013698,2]
[339760697,1727956247365,-255.031664,0.00013698,2]
[339760698,1727956247376,-500.0,0.00013698,2]
[339760699,1727956247388,-754.21,0.00013698,2]
[339760700,1727956247400,-500.0,0.00013698,2]
[339760701,1727956247410,-500.0,0.00013698,2]
[339760702,1727956247422,-500.0,0.00013698,2]
[339760703,1727956247432,-1076.51,0.00013698,2]
[339760704,1727956247441,-500.0,0.00013698,2]
[339760705,1727956247459,-500.0,0.00013698,2]
[339760706,1727956247469,-500.0,0.00013698,2]
[339760707,1727956247479,-500.0,0.00013698,2]
[339760708,1727956247489,-636.31,0.00013698,2]
[339760709,1727956247499,-607.57689843,0.00013698,2]
[339760710,1727956247509,-502.8,0.00013698,2]
[339760711,1727956247518,-500.0,0.00013698,2]
[339760712,1727956247527,-500.0,0.00013698,2]
[339760713,1727956247537,-501.13455065,0.00013698,2]
[339760714,1727956247546,-500.0,0.00013698,2]
[339760715,1727956247556,-806.87,0.00013698,2]
[339760716,1727956247565,-636.98,0.00013698,2]
[339760717,1727956247575,-500.0,0.00013698,2]
[339760718,1727956247585,-624.18314769,0.00013698,2]
[339760719,1727956247595,-500.0,0.00013698,2]
[339760720,1727956247605,-500.0,0.00013698,2]
[339760721,1727956247615,-500.0,0.00013698,2]
[339760722,1727956247625,-500.0,0.00013698,2]
[339760723,1727956247635,-500.0,0.00013698,2]
[339760724,1727956247647,-500.0,0.00013698,2]
[339760725,1727956247659,-500.0,0.00013698,2]
[339760726,1727956247670,-500.0,0.00013698,2]
[339760727,1727956247680,-500.0,0.00013698,2]
[339760728,1727956247690,-151.0,0.00013698,2]
[339760729,1727956247703,-151.0,0.00013698,2]
[339760730,1727956247712,-500.0,0.00013698,2]
[339760731,1727956247722,-151.0,0.00013698,2]
[339760732,1727956247731,-500.0,0.00013698,2]
[339760733,1727956247741,-151.0,0.00013698,2]
[339760734,1727956247751,-151.0,0.00013698,2]
[339760735,1727956247761,-504.23843504,0.00013698,2]
[339760736,1727956247771,-151.0,0.00013698,2]
[339760737,1727956247780,-884.68276551,0.00013698,2]
[339760738,1727956248305,-115.31723449,0.00013698,2]
[339760739,1727956248316,-500.0,0.00013698,2]
[339760740,1727956248327,-500.0,0.00013698,2]
[339760741,1727956248337,-500.0,0.00013698,2]
[339760742,1727956248347,-500.75925105,0.00013698,2]
[339760743,1727956248356,-501.41258368,0.00013698,2]
[339760744,1727956248366,-151.0,0.00013698,2]
[339760745,1727956248376,-151.0,0.00013698,2]
[339760746,1727956248387,-590.59,0.00013698,2]
[339760747,1727956248397,-151.0,0.00013698,2]
[339760748,1727956248406,-566.7,0.00013698,2]
[339760749,1727956248416,-151.0,0.00013698,2]
[339760750,1727956248425,-500.0,0.00013698,2]
[339760751,1727956248435,-151.0,0.00013698,2]
[339760752,1727956248446,-151.0,0.00013698,2]
[339760753,1727956248456,-501.90754559,0.00013698,2]
[339760754,1727956248467,-151.0,0.00013698,2]
[339760755,1727956248476,-500.0,0.00013698,2]
[339760756,1727956248486,-221.31338519,0.00013698,2]
[339760757,1727956248500,-278.68661481,0.00013698,2]
[339760758,1727956248510,-500.0,0.00013698,2]
[339760759,1727956248519,-501.47465994,0.00013698,2]
[339760760,1727956248529,-500.0,0.00013698,2]
[339760761,1727956248539,-500.0,0.00013698,2]
[339760762,1727956248549,-500.0,0.00013698,2]
[339760763,1727956248559,-500.0,0.00013698,2]
[339760764,1727956248570,-336.85102357,0.00013698,2]
[339760777,1727957277253,1000.0,0.0002101,120]
[339760843,1727957464298,500.0,0.00010201,2]
[339760932,1727958570232,-189.94062,0.00010785,2]
[339760933,1727958570253,-250.0,0.00011427,2]
[339760934,1727958570276,-300.0,0.00011513,2]
[339760935,1727958570298,-300.0,0.00011513,2]
[339760936,1727958570320,-14622.0798081,0.00011514,2]
[339760937,1727958570341,-701.3881279,0.00011836,2]
[339760938,1727958570364,-190.925169,0.00011909,2]
[339760939,1727958570386,-260.4875259,0.00012122,2]
[339760940,1727958570407,-239.5124741,0.00012122,2]
[339760941,1727958570436,-832.4307593,0.000122,2]
[339760942,1727958570459,-250.8387224,0.000122,2]
[339760943,1727958570481,-65.17346931,0.000123,2]
[339760956,1727958632404,-434.78,0.00010959,2]
[339760957,1727958632414,-391.68,0.00010959,2]
[339760958,1727958632423,-326.4,0.00010959,2]
[339760959,1727958632433,-418.84,0.00010959,2]
[339760960,1727958632443,-349.03,0.00010959,2]
[339760961,1727958632453,-290.86,0.00010959,2]
[339760962,1727958632462,-487.02940715,0.00012122,2]
[339760963,1727958632472,-3000.0,0.0001219,2]
[339760964,1727958632482,-119.99673034,0.000123,2]
[339760965,1727958632492,-190.925169,0.00012529,2]
[339760966,1727958632502,-383.954727,0.00012603,2]
[339760967,1727958632512,-306.0,0.00012778,2]
[339760968,1727958632523,-209.5065215,0.00012778,2]
[339760969,1727958632533,-153.0,0.00012778,2]
[339760970,1727958632544,-209.5065215,0.00012778,2]
[339760971,1727958632554,-300.0,0.00012799,2]
[339760973,1727958632567,-7974.076,0.000128,2]
[339760974,1727958632580,-500.0,0.00012941,2]
[339760975,1727958632591,-525.0,0.00013339,2]
[339760976,1727958632602,-150.0,0.00013339,2]
[339760977,1727958632612,-1216.352,0.00013339,2]
[339760978,1727958632624,-211.07336208,0.00013578,2]
[339760979,1727958632636,-33.28956143,0.00013583,2]
[339761073,1727958643752,-177.78380061,0.00013583,2]
[339761074,1727958643763,-211.07336204,0.00013588,2]
[339761075,1727958643772,-127.08139461,0.00013588,2]
[339761126,1727958646510,-242.38,0.00010959,2]
[339761128,1727958646520,-3668.35588858,0.00013588,2]
[339761130,1727958646529,-405.11574369,0.00013588,2]
[339761132,1727958646538,-211.07336204,0.00013593,2]
[339761134,1727958646548,-211.07336204,0.00013598,2]
[339761136,1727958646562,-953.25967359,0.00013598,2]
[339761138,1727958646572,-2000.0,0.000136,2]
[339761140,1727958646582,-1361.0,0.00013648,6]
[339761142,1727958646592,-445.81035867,0.00013668,2]
[339761144,1727958646602,-234.73513224,0.00013668,2]
[339761146,1727958646613,-2381.79647915,0.00013668,2]
[339761174,1727958666805,500.0,0.00010201,2]
[339761197,1727958925736,200.37257706,0.00015,30]
[339761210,1727959518455,-201.99,0.00010959,2]
[339761211,1727959518479,-168.32,0.00010959,2]
[339761212,1727959518502,-841.63,0.00010959,2]
[339761213,1727959518524,-500.0,0.00011164,2]
[339761214,1727959518549,-162.047663,0.00012476,2]
[339761215,1727959518572,-162.047663,0.00012569,2]
[339761216,1727959518594,-364.756991,0.00012603,2]
[339761217,1727959518618,-162.047663,0.00012662,2]
[339761218,1727959518641,-162.047663,0.00012755,2]
[339761219,1727959518666,-162.047663,0.00012847,2]
[339761220,1727959518689,-162.047663,0.0001294,2]
[339761223,1727959626185,-447.93699561,0.00011164,2]
[339761224,1727959635063,153.0,0.0002017,120]
[339761225,1727959773158,-52.06300439,0.00011164,2]
[339761226,1727959776099,-150.0,0.00021206,120]
[339761227,1727959776135,-200.0,0.00022,120]
[339761228,1727959776158,-125.33,0.0002206,120]
[339761229,1727959808108,246.74927309,0.00011164,2]
[339761243,1727959832653,-253.25072691,0.00011164,2]
[339761244,1727959832662,-1207.5868715,0.0001245,2]
[339761245,1727959832672,-300.0,0.00012999,2]
[339761246,1727959832684,-300.0,0.00012999,2]
[339761247,1727959832693,-500.0,0.00013,2]
[339761248,1727959832702,-500.0,0.00013,2]
[339761250,1727959832712,-500.0,0.00013,2]
[339761252,1727959832722,-500.0,0.00013,2]
[339761253,1727959832732,-500.0,0.00013,2]
[339761254,1727959832742,-500.0,0.00013,2]
[339761255,1727959832753,-500.0,0.00013,2]
[339761256,1727959832763,-162.047663,0.00013033,2]
[339761257,1727959832772,-162.047663,0.00013126,2]
[339761258,1727959832781,-418.9177848,0.00013151,2]
[339761259,1727959832790,-209.4588924,0.00013151,2]
[339761260,1727959832799,-600.91359077,0.00013151,2]
[339761261,1727959832809,-525.0,0.00013547,2]
[339761262,1727959832818,-150.0,0.00013547,2]
[339761263,1727959832827,-153.0,0.00013589,2]
[339761264,1727959832837,-209.5065215,0.00013589,2]
[339761265,1727959832846,-209.5065215,0.00013589,2]
[339761266,1727959832855,-209.5065215,0.00013589,2]
[339761267,1727959832865,-857.93370624,0.00013598,2]
[339761268,1727959832874,-493.47658338,0.00013668,2]
[339761269,1727959832883,-308.28462024,0.00013668,2]
[339761270,1727959832893,-7936.66233326,0.00013668,2]
[339761296,1727959838611,-234.73513223,0.00013668,2]
[339761297,1727959838620,-2765.26486777,0.00013668,2]
[339761301,1727959839433,-24175.13847072,0.00013668,2]
[339761312,1727959840785,-10186.19,0.00013547,2]
[339761313,1727959840795,-8081.48409066,0.00013668,2]
[339761327,1727959843786,-3743.64952321,0.00013668,2]
[339761384,1727960813072,8395.77,0.00010205,2]
[339761394,1727961031850,-500.0,0.00011164,2]
[339761395,1727961031870,-300.0,0.00011855,2]
[339761396,1727961031883,-300.0,0.00011855,2]
[339761397,1727961031894,-10986.4,0.00011856,2]
[339761417,1727961037751,-401.63300092,0.00011856,2]
[339761420,1727961037767,-423.01662996,0.00011856,2]
[339761444,1727961039811,-13088.59989232,0.00011856,2]
[339761445,1727961039823,-213.8156769,0.00012109,2]
[339761446,1727961039832,-151.081,0.000125,2]
[339761447,1727961039842,-391.994374,0.00012603,2]
[339761448,1727961039853,-420.0,0.00013016,2]
[339761449,1727961039865,-420.0,0.0001304,2]
[339761450,1727961039877,-739.62294691,0.00013154,2]
[339761451,1727961039887,-412.778192,0.00013274,2]
[339761452,1727961039897,-3828.97217675,0.00013447,2]
[339761453,1727961039907,-353.64902799,0.00013447,2]
[339761454,1727961039917,-214.417,0.00013547,2]
[339761455,1727961039928,-250.0,0.00013547,2]
[339761456,1727961039937,-156.045,0.00013547,2]
[339761457,1727961039949,-250.0,0.00013547,2]
[339761458,1727961039959,-150.0,0.00013547,2]
[339761459,1727961039969,-150.0,0.00013547,2]
[339761460,1727961039978,-525.0,0.00013547,2]
[339761461,1727961039988,-1217.0,0.00013547,2]
[339761462,1727961039999,-875.87266706,0.00013598,2]
[339761463,1727961040009,-5000.0,0.000136,2]
[339761464,1727961040020,-156.777,0.000136,2]
[339761465,1727961040030,-213.05022705,0.000136,2]
[339761466,1727961040041,-662.26949,0.00013658,2]
[339761467,1727961040052,-246.73829169,0.00013658,2]
[339761468,1727961040062,-200.81650046,0.00013658,2]
[339761469,1727961040074,-18888.7356067,0.00013658,2]
[339761470,1727961040084,-6885.01690017,0.00013658,2]
[339761471,1727961040097,-679.40527399,0.00013658,2]
[339761482,1727961042831,-624.88000006,0.00013658,2]
[339761509,1727961045883,-567.33718519,0.00013658,2]
[339761510,1727961045901,-1000.0,0.00013658,2]
[339761518,1727961105924,162.0,0.000209,120]
[339761521,1727961670305,284.88,0.00015,30]
[339761547,1727962159284,-500.0,0.00011164,2]
[339761548,1727962159308,-300.0,0.00011443,2]
[339761549,1727962159330,-300.0,0.00011443,2]
[339761550,1727962159354,-250.0,0.00011444,2]
[339761551,1727962159377,-20781.1897072,0.00011444,2]
[339761552,1727962159400,-324.17440602,0.00011893,2]
[339761553,1727962159425,-159.115997,0.00011994,2]
[339761554,1727962159448,-159.115997,0.00012028,2]
[339761555,1727962159471,-159.115997,0.00012063,2]
[339761556,1727962159501,-159.115997,0.00012098,2]
[339761557,1727962159543,-159.115997,0.00012132,2]
[339761558,1727962159566,-159.115997,0.00012167,2]
[339761559,1727962159588,-159.115997,0.00012202,2]
[339761560,1727962159611,-159.115997,0.00012237,2]
[339761561,1727962159632,-91.6263127,0.00012271,2]
[339761580,1727962232711,-500.0,0.00011164,2]
[339761581,1727962232723,-67.4896843,0.00012271,2]
[339761582,1727962232732,-159.115997,0.00012306,2]
[339761583,1727962232742,-159.115997,0.00012341,2]
[339761584,1727962232752,-159.115997,0.00012375,2]
[339761585,1727962232762,-159.115997,0.0001241,2]
[339761586,1727962232771,-159.115997,0.00012445,2]
[339761587,1727962232781,-159.115997,0.0001248,2]
[339761588,1727962232794,-159.115997,0.00012514,2]
[339761589,1727962232804,-159.115997,0.00012549,2]
[339761590,1727962232814,-159.115997,0.00012584,2]
[339761591,1727962232824,-372.394656,0.00012603,2]
[339761592,1727962232834,-159.115997,0.00012618,2]
[339761593,1727962232844,-1381.233594,0.00013,2]
[339761594,1727962232853,-150.0,0.00013083,2]
[339761595,1727962232863,-600.0,0.00013151,2]
[339761596,1727962232873,-300.0,0.00013168,2]
[339761597,1727962232882,-300.0,0.00013168,2]
[339761598,1727962232892,-5106.3378789,0.00013169,2]
[339761599,1727962232902,-600.0,0.00013288,2]
[339761600,1727962232913,-689.88540108,0.00013325,2]
[339761601,1727962232926,-3062.95622341,0.00013325,2]
[339761602,1727962232936,-600.0,0.00013425,2]
[339761603,1727962232946,-150.303,0.00013543,2]
[339761604,1727962232955,-525.945,0.00013543,2]
[339761605,1727962232965,-1218.0,0.00013543,2]
[339761606,1727962232974,-850.11513678,0.00013558,2]
[339761607,1727962232984,-156.777,0.00013618,2]
[339761608,1727962232995,-1255.40883,0.00013629,2]
[339761609,1727962233004,-10291.69480982,0.00013631,2]
[339761630,1727962237963,-630.37695696,0.0001363,2]
[339761632,1727962237974,-26746.42594708,0.00013631,2]
[339761634,1727962237983,-6521.684099,0.00013636,2]
[339761636,1727962237993,-3084.22864611,0.00013638,2]
[339761638,1727962238002,-569.87851471,0.00013638,2]
[339761640,1727962238011,-111114.362271,0.00013638,2]
[339761642,1727962238020,-151.0,0.00013639,2]
[339761644,1727962238030,-66312.7621922,0.0001364,2]
[339761645,1727962238043,-277.792006,0.00013641,2]
[339761648,1727962238055,-37038.1207569,0.00013648,2]
[339761650,1727962238063,-132625.524384,0.00013648,2]
[339761652,1727962238073,-74076.2415137,0.00013648,2]
[339761654,1727962238087,-151.0,0.0001365,2]
[339761656,1727962238096,-151.0,0.0001365,2]
[339761658,1727962238107,-151.0,0.0001365,2]
[339761660,1727962238117,-151.0,0.0001365,2]
[339761662,1727962238127,-151.0,0.0001365,2]
[339761664,1727962238136,-151.0,0.0001365,2]
[339761666,1727962238145,-151.0,0.0001365,2]
[339761668,1727962238155,-151.0,0.0001365,2]
[339761670,1727962238166,-151.0,0.0001365,2]
[339761672,1727962238175,-151.0,0.0001365,2]
[339761674,1727962238185,-151.0,0.0001365,2]
[339761676,1727962238195,-151.0,0.0001365,2]
[339761678,1727962238204,-151.0,0.0001365,2]
[339761680,1727962238214,-151.0,0.0001365,2]
[339761681,1727962238223,-151.0,0.0001365,2]
[339761682,1727962238233,-151.0,0.0001365,2]
[339761683,1727962238242,-151.0,0.0001365,2]
[339761684,1727962238252,-151.4436,0.0001365,2]
[339761685,1727962238261,-197.470736,0.0001365,2]
[339761686,1727962238271,-197.470736,0.0001365,2]
[339761687,1727962238280,-151.652082,0.0001365,2]
[339761688,1727962238295,-197.470736,0.0001365,2]
[339761689,1727962238304,-197.470736,0.0001365,2]
[339761690,1727962238314,-249.447006,0.0001365,2]
[339761691,1727962238323,-249.447006,0.0001365,2]
[339761692,1727962238332,-249.447006,0.0001365,2]
[339761693,1727962238342,-249.447006,0.0001365,2]
[339761694,1727962238352,-151.0,0.0001365,2]
[339761695,1727962238361,-249.447006,0.0001365,2]
[339761696,1727962238370,-151.0,0.0001365,2]
[339761697,1727962238380,-249.447006,0.0001365,2]
[339761698,1727962238389,-617.356147,0.0001365,2]
[339761699,1727962238399,-617.356147,0.0001365,2]
[339761700,1727962238409,-617.356147,0.0001365,2]
[339761701,1727962238418,-617.356147,0.0001365,2]
[339761702,1727962238428,-151.0,0.0001365,2]
[339761703,1727962238438,-151.0,0.0001365,2]
[339761704,1727962238449,-151.0,0.0001365,2]
[339761705,1727962238458,-151.0,0.0001365,2]
[339761706,1727962238468,-151.0,0.0001365,2]
[339761707,1727962238478,-151.0,0.0001365,2]
[339761708,1727962238487,-151.0,0.0001365,2]
[339761709,1727962238496,-151.0,0.0001365,2]
[339761710,1727962238506,-66312.7621922,0.00013658,2]
[339761711,1727962238515,-37038.1207569,0.00013658,2]
[339761712,1727962238525,-151.0,0.00013658,2]
[339761713,1727962238538,-151.0,0.00013658,2]
[339761714,1727962238547,-151.0,0.00013658,2]
[339761715,1727962238557,-151.0,0.00013658,2]
[339761716,1727962238566,-151.0,0.00013658,2]
[339761717,1727962238575,-151.0,0.00013658,2]
[339761718,1727962238584,-151.0,0.00013658,2]
[339761719,1727962238594,-182.398102,0.00013658,2]
[339761720,1727962238603,-151.0,0.00013658,2]
[339761721,1727962238612,-151.0,0.00013658,2]
[339761722,1727962238621,-151.0,0.00013658,2]
[339761723,1727962238631,-151.0,0.00013658,2]
[339761724,1727962238640,-151.0,0.00013658,2]
[339761725,1727962238650,-151.0,0.00013658,2]
[339761726,1727962238660,-197.470736,0.00013658,2]
[339761727,1727962238669,-197.470736,0.00013658,2]
[339761728,1727962238678,-197.470736,0.00013658,2]
[339761729,1727962238687,-197.470736,0.00013658,2]
[339761730,1727962238697,-249.447006,0.00013658,2]
[339761731,1727962238706,-249.447006,0.00013658,2]
[339761733,1727962238715,-151.0,0.00013658,2]
[339761735,1727962238724,-249.447006,0.00013658,2]
[339761737,1727962238733,-249.447006,0.00013658,2]
[339761738,1727962238743,-617.356147,0.00013658,2]
[339761740,1727962238753,-617.356147,0.00013658,2]
[339761742,1727962238762,-617.356147,0.00013658,2]
[339761743,1727962238771,-617.356147,0.00013658,2]
[339761745,1727962238781,-151.0,0.00013658,2]
[339761747,1727962238793,-151.0,0.00013658,2]
[339761748,1727962238802,-151.0,0.00013658,2]
[339761750,1727962238812,-151.0,0.00013658,2]
[339761751,1727962238822,-151.0,0.00013658,2]
[339761752,1727962238831,-151.0,0.00013658,2]
[339761753,1727962238843,-151.0,0.00013658,2]
[339761754,1727962238853,-66312.7621922,0.00013658,2]
[339761755,1727962238864,-151.0,0.0001366,2]
[339761756,1727962238873,-151.0,0.0001366,2]
[339761757,1727962238882,-151.0,0.0001366,2]
[339761758,1727962238892,-151.0,0.0001366,2]
[339761759,1727962238901,-868.098468,0.0001366,2]
[339761760,1727962238911,-868.098468,0.0001366,2]
[339761761,1727962238920,-868.098468,0.0001366,2]
[339761762,1727962238930,-868.098468,0.0001366,2]
[339761763,1727962238940,-151.0,0.0001366,2]
[339761764,1727962238948,-151.0,0.0001366,2]
[339761765,1727962238957,-151.0,0.0001366,2]
[339761766,1727962238966,-151.0,0.0001366,2]
[339761767,1727962238976,-259.024005,0.0001366,2]
[339761768,1727962238985,-259.024005,0.0001366,2]
[339761769,1727962238995,-151.0,0.0001366,2]
[339761770,1727962239005,-259.024005,0.0001366,2]
[339761771,1727962239014,-259.024005,0.0001366,2]
[339761772,1727962239024,-188.069364,0.0001366,2]
[339761773,1727962239144,-188.069364,0.0001366,2]
[339761774,1727962239156,-188.069364,0.0001366,2]
[339761775,1727962239166,-188.069364,0.0001366,2]
[339761776,1727962239176,-151.0,0.00013663,2]
[339761777,1727962239185,-151.0,0.00013663,2]
[339761778,1727962239195,-151.0,0.00013663,2]
[339761779,1727962239205,-151.0,0.00013663,2]
[339761780,1727962239214,-151.0,0.00013663,2]
[339761781,1727962239223,-300.02,0.00013667,2]
[339761782,1727962239233,-2484.29678516,0.00013667,2]
[339761783,1727962239243,-151.0,0.00013667,2]
[339761784,1727962239253,-151.0,0.00013667,2]
[339761785,1727962239262,-301.679395,0.00013667,2]
[339761786,1727962239272,-301.679395,0.00013667,2]
[339761787,1727962239283,-151.0,0.00013667,2]
[339761788,1727962239295,-151.0,0.00013667,2]
[339761789,1727962239305,-151.0,0.00013667,2]
[339761790,1727962239316,-151.0,0.00013667,2]
[339761791,1727962239328,-151.0,0.00013667,2]
[339761792,1727962239338,-151.0,0.00013667,2]
[339761793,1727962239348,-197.470736,0.00013667,2]
[339761794,1727962239358,-197.470736,0.00013667,2]
[339761795,1727962239367,-249.447006,0.00013667,2]
[339761796,1727962239378,-249.447006,0.00013667,2]
[339761797,1727962239387,-617.356147,0.00013667,2]
[339761798,1727962239396,-617.356147,0.00013667,2]
[339761799,1727962239406,-152.154406,0.00013667,2]
[339761800,1727962239416,-268.206716,0.00013667,2]
[339761801,1727962239426,-151.0,0.00013667,2]
[339761802,1727962239435,-151.0,0.00013668,2]
[339761803,1727962239446,-151.0,0.00013668,2]
[339761805,1727962239455,-151.0,0.00013668,2]
[339761806,1727962239464,-151.0,0.00013668,2]
[339761807,1727962239474,-151.0,0.00013668,2]
[339761808,1727962239482,-151.0,0.00013668,2]
[339761809,1727962239492,-151.0,0.00013668,2]
[339761810,1727962239502,-173.43192,0.00013668,2]
[339761811,1727962239511,-151.0,0.00013668,2]
[339761812,1727962239521,-281.948426,0.00013668,2]
[339761813,1727962239530,-151.0,0.00013668,2]
[339761814,1727962239541,-151.0,0.00013668,2]
[339761815,1727962239551,-151.0,0.00013668,2]